[Event "Romanian Amateur Championship 2024"]
[Site "Eforie Nord"]
[Date "2024.03.02"]
[Round "9.1"]
[White "Tanasie, Cosmin"]
[Black "Petroff, Vlad"]
[Result "1/2-1/2"]
[ECO "D00"]
[WhiteElo "2017"]
[BlackElo "1655"]
[Annotator "NA"]
[PlyCount "77"]
[EventDate "2024.02.26"]
[EventType "swiss"]
[EventCountry "ROU"]
[SourceTitle "playchess.com"]
[Source "ChessBase"]
[SourceQuality "1"]
[TimeControl "3600+30"]

1. d4 {[%emt 0:00:04]} d5 {[%emt 0:00:06]} 2. Bf4 {[%emt 0:00:03]} Nf6 {[%emt 0:00:11]} 3. e3 {[%emt 0:00:03]} c5 {[%emt 0:00:22]} 4. c3 {[%emt 0:00:09]} Nc6 {[%emt 0:00:30]} 5. Nd2 {[%emt 0:00:07]} Bf5 {[%emt 0:00:43]} 6. Qb3 {[%emt 0:00:29] D00: 1 d4 d5: Unusual lines.} Qd7 {[%emt 0:00:16]} 7. Ngf3 {[%emt 0:01:25]} c4 {[%emt 0:00:29]} 8. Qd1 {[%emt 0:00:07]} e6 {[%emt 0:01:07]} 9. Be2 {[%emt 0:01:05]} b5 {[%emt 0:00:54]} 10. a3 {[%emt 0:00:14]} h6 {[%emt 0:00:32]} 11. O-O {[%emt 0:01:06]} Bd6 {[%emt 0:02:22]} 12. Ne5 {[%emt 0:00:55]} Qc7 {[%emt 0:00:55]} 13. Nxc6 {[%emt 0:02:10]} Qxc6 {[%emt 0:00:19]} 14. Nf3 {[%emt 0:29:52]} O-O {[%emt 0:00:12]} 15. Ne5 {[%emt 0:01:16]} Qc7 {[%emt 0:00:48]} 16. Bg3 {[%emt 0:02:50]} (16. h4 $15) 16... Ne4 {[%emt 0:05:10]} 17. Nf3 {[%emt 0:02:01]} a5 {[%emt 0:01:58]} 18. Bxd6 {[%emt 0:01:25]} Qxd6 {[%emt 0:00:16]} 19. Nd2 {[%emt 0:00:21]} Rfb8 {[%emt 0:03:05]} 20. Nxe4 {[%emt 0:01:45]} Bxe4 $17 {[%emt 0:00:17]} 21. b4 {[%emt 0:06:14]} axb4 {[%emt 0:00:59]} 22. axb4 {[%emt 0:00:01]} Ra6 {[%emt 0:00:59]} 23. Rxa6 {[%emt 0:03:48]} Qxa6 {[%emt 0:00:07]} 24. Qa1 {[%emt 0:15:00]} Ra8 {[%emt 0:00:21]} 25. Qxa6 {[%emt 0:00:00]} Rxa6 {[%emt 0:00:07]} 26. Rc1 {[%emt 0:00:00]} Ra3 {[%emt 0:01:11]} 27. g3 {[%emt 0:00:00]} Ra2 {[%emt 0:00:24]} 28. Bf1 {[%emt 0:00:00]} Bf3 {[%emt 0:00:43]} 29. Bg2 {[%emt 0:00:00]} Bxg2 {[%emt 0:00:27]} 30. Kxg2 {[%emt 0:00:00]} Kf8 {[%emt 0:00:29]} 31. g4 {[%emt 0:00:00]} g6 {[%emt 0:00:52]} 32. Kg3 {[%emt 0:00:00]} Kg7 {[%emt 0:00:51]} 33. h3 {[%emt 0:00:00]} g5 {[%emt 0:00:58]} 34. Kf3 {[%emt 0:00:00]} Kg6 {[%emt 0:11:25]} 35. Kg3 {[%emt 0:00:00]} Kf6 {[%emt 0:00:16]} 36. f4 {[%emt 0:00:00]} Re2 {[%emt 0:03:17]} 37. Kf3 {[%emt 0:00:00]} Rh2 {[%emt 0:01:13]} 38. Kg3 {[%emt 0:00:00]} Re2 {[%emt 0:00:30]} 39. Kf3 {[%emt 0:00:00]} 1/2-1/2

[Event "Romanian Amateur Championship 2024"]
[Site "Eforie Nord"]
[Date "2024.03.02"]
[Round "9.2"]
[White "Zubcu, Vlad-George"]
[Black "Leu, Dragos Stefan"]
[Result "1-0"]
[ECO "B23"]
[WhiteElo "2166"]
[BlackElo "1838"]
[Annotator "RC"]
[PlyCount "89"]
[EventDate "2024.02.26"]
[EventType "swiss"]
[EventCountry "ROU"]
[SourceTitle "playchess.com"]
[Source "ChessBase"]
[SourceQuality "1"]
[TimeControl "3600+30"]

1. e4 {[%emt 0:00:02]} c5 {[%emt 0:00:03]} 2. Nc3 {[%emt 0:00:07]} Nc6 {[%emt 0:00:14]} 3. Bb5 {[%emt 0:01:04]} Nd4 {[%emt 0:07:10]} 4. Nf3 {[%emt 0:00:16]} g6 {[%emt 0:08:15]} 5. Nxd4 {[%emt 0:00:22]} cxd4 {[%emt 0:00:01]} 6. Ne2 {[%emt 0:00:08]} Bg7 {[%emt 0:00:09]} 7. c3 {[%emt 0:00:13]} a6 {[%emt 0:03:54]} 8. Bd3 {[%emt 0:01:25]} dxc3 {[%emt 0:00:11]} 9. dxc3 {[%emt 0:00:07]} d6 {[%emt 0:00:19]} 10. Be3 {[%emt 0:01:30]} Nf6 {[%emt 0:00:36]} 11. h3 {[%emt 0:02:38]} O-O {[%emt 0:01:16]} 12. a4 {[%emt 0:00:45]} b6 {[%emt 0:04:36]} 13. O-O {[%emt 0:03:22]} Bb7 {[%emt 0:00:05]} 14. Qc2 {[%emt 0:03:16]} Qc7 {[%emt 0:03:52]} 15. f4 {[%emt 0:14:22]} Rac8 {[%emt 0:15:50]} 16. Ng3 {[%emt 0:03:16]} e5 {[%emt 0:04:51]} 17. Qe2 {[%emt 0:03:08]} a5 {[%emt 0:08:03]} 18. Qf2 {[%emt 0:01:20]} Nd7 {[%emt 0:00:27]} 19. Rfd1 {[%emt 0:00:33]} d5 {[%emt 0:03:59]} 20. Bb5 {[%emt 0:00:38]} Rcd8 {[%emt 0:05:37]} 21. exd5 {[%emt 0:01:42]} Nc5 {[%emt 0:00:21]} 22. b4 {[%emt 0:03:03]} axb4 {[%emt 0:01:10]} 23. cxb4 {[%emt 0:00:01]} Nb3 {[%emt 0:00:30]} 24. Bxb6 {[%emt 0:02:49]} Qc3 {[%emt 0:00:17]} 25. Bxd8 {[%emt 0:01:11]} Rxd8 {[%emt 0:00:41]} 26. Rab1 {[%emt 0:01:11]} Rxd5 {[%emt 0:00:28]} 27. Rxd5 {[%emt 0:03:36]} Bxd5 {[%emt 0:00:01]} 28. Rd1 {[%emt 0:00:20]} Nd4 {[%emt 0:00:54]} 29. Qe1 {[%emt 0:01:01]} Qb2 {[%emt 0:00:39]} 30. Qd2 {[%emt 0:01:12]} Qb3 {[%emt 0:00:28]} 31. Ne2 {[%emt 0:00:46]} Bb7 {[%emt 0:01:03]} 32. Nxd4 {[%emt 0:00:52]} exd4 {[%emt 0:00:00]} 33. Re1 {[%emt 0:02:43]} Bf6 {[%emt 0:00:00]} 34. a5 {[%emt 0:02:52]} Kg7 {[%emt 0:00:58]} 35. Bf1 {[%emt 0:01:01]} Bd5 {[%emt 0:00:31]} 36. b5 {[%emt 0:00:35]} Qg3 {[%emt 0:00:08]} 37. b6 {[%emt 0:01:26]} d3 {[%emt 0:00:30]} 38. Qf2 {[%emt 0:01:09]} Qxf2+ {[%emt 0:00:51]} 39. Kxf2 Bd4+ 40. Kg3 {[%emt 0:00:03]} Bc3 {[%emt 0:00:59]} 41. Rb1 {[%emt 0:01:20]} Bb7 {[%emt 0:00:32]} 42. Bxd3 {[%emt 0:00:51]} Bxa5 {[%emt 0:00:06]} 43. Be2 {[%emt 0:00:03]} g5 {[%emt 0:00:20]} 44. Bf3 {[%emt 0:00:17]} gxf4+ {[%emt 0:00:07]} 45. Kf2 {[%emt 0:00:22]} 1-0

[Event "Romanian Amateur Championship 2024"]
[Site "Eforie Nord"]
[Date "2024.03.02"]
[Round "9.3"]
[White "Sprincean, Lukas George"]
[Black "Tudoroiu, Razvan-Catalin"]
[Result "0-1"]
[ECO "B38"]
[WhiteElo "1640"]
[BlackElo "2031"]
[Annotator "NA RC"]
[PlyCount "104"]
[EventDate "2024.02.26"]
[EventType "swiss"]
[EventCountry "ROU"]
[SourceTitle "playchess.com"]
[Source "ChessBase"]
[SourceQuality "1"]
[TimeControl "3600+30"]

1. e4 {[%emt 0:00:10]} c5 {[%emt 0:00:41]} 2. Nf3 {[%emt 0:00:08]} Nc6 {[%emt 0:00:08]} 3. d4 {[%emt 0:00:07]} cxd4 {[%emt 0:00:05]} 4. Nxd4 {[%emt 0:00:04]} g6 {[%emt 0:00:06]} 5. c4 {[%emt 0:00:07]} Bg7 {[%emt 0:00:05]} 6. Be3 {[%emt 0:00:04]} Nf6 {[%emt 0:00:07]} 7. Nc3 {[%emt 0:00:04]} O-O {[%emt 0:00:14]} 8. Be2 {[%emt 0:00:04]} d6 {[%emt 0:00:07]} 9. O-O {[%emt 0:00:06]} Bd7 {[%emt 0:00:06]} 10. Rb1 {[%emt 0:01:47]} Nxd4 {[%emt 0:00:09]} 11. Bxd4 {[%emt 0:00:53]} Bc6 {[%emt 0:00:11]} 12. f3 {[%emt 0:05:51]} a5 {[%emt 0:00:09]} 13. Qd2 {[%emt 0:57:35]} Nd7 {[%emt 0:00:36] B38: Sicilian: Maroczy Bind with 5...Bg7 and 7...0-0.} 14. b3 {[%emt 0:00:00]} Nc5 {[%emt 0:00:09]} 15. Bxg7 {[%emt 0:00:00]} Kxg7 {[%emt 0:00:07]} 16. Qd4+ {[%emt 0:00:00]} e5 {[%emt 0:05:13]} 17. Qd2 {[%emt 0:00:00]} Ne6 {[%emt 0:03:18]} 18. Rbd1 {[%emt 0:00:00]} Qb6+ {[%emt 0:00:22]} 19. Kh1 {[%emt 0:00:00]} Rfd8 {[%emt 0:01:27]} 20. Nd5 {[%emt 0:00:00]} Bxd5 {[%emt 0:00:35]} 21. exd5 $11 {[%emt 0:00:00]} Nd4 {[%emt 0:22:22]} 22. f4 {[%emt 0:04:30]} f6 {[%emt 0:04:08]} 23. fxe5 {[%emt 0:00:00]} dxe5 {[%emt 0:00:13]} 24. Bf3 {[%emt 0:00:00]} Qc5 {[%emt 0:01:53]} 25. Qc3 {[%emt 0:00:00]} Ra6 {[%emt 0:04:01]} 26. a3 {[%emt 0:00:00]} b5 {[%emt 0:19:24]} 27. Rfe1 {[%emt 0:00:37]} b4 {[%emt 0:03:50]} 28. axb4 {[%emt 0:00:26]} axb4 {[%emt 0:00:01]} 29. Qe3 {[%emt 0:01:38]} Ra3 {[%emt 0:01:08]} 30. Rd3 {[%emt 0:00:30]} Rc8 {[%emt 0:02:20]} 31. h3 {[%emt 0:00:32]} Rc7 {[%emt 0:00:07]} 32. Red1 {[%emt 0:00:35]} Qd6 {[%emt 0:01:50]} 33. Rxd4 {[%emt 0:00:35]} exd4 {[%emt 0:00:05]} 34. Qxd4 {[%emt 0:00:17]} Rxb3 {[%emt 0:00:29]} 35. Rc1 {[%emt 0:00:39]} Rc5 {[%emt 0:01:20]} 36. Bd1 {[%emt 0:00:27]} Ra3 {[%emt 0:00:48]} 37. Bg4 {[%emt 0:00:16]} Rc3 {[%emt 0:00:29]} 38. Rxc3 {[%emt 0:00:51]} bxc3 {[%emt 0:00:04]} 39. Bd1 {[%emt 0:00:31]} Rc7 {[%emt 0:00:53]} 40. Bb3 {[%emt 0:00:20]} Qc5 {[%emt 0:00:38]} 41. Qd3 {[%emt 0:00:34]} Qb4 {[%emt 0:00:29]} 42. Qc2 {[%emt 0:00:30]} Re7 {[%emt 0:00:28]} 43. h4 {[%emt 0:00:35]} Re1+ {[%emt 0:00:12]} 44. Kh2 {[%emt 0:00:00]} Qd6+ {[%emt 0:00:32]} 45. g3 {[%emt 0:00:19]} Qc5 {[%emt 0:00:43]} 46. Kh3 {[%emt 0:01:14]} Rh1+ {[%emt 0:00:25]} 47. Kg2 {[%emt 0:00:29]} Qg1+ {[%emt 0:00:15]} 48. Kf3 {[%emt 0:00:01]} Qf1+ {[%emt 0:00:53]} 49. Qf2 {[%emt 0:00:28]} Qd3+ {[%emt 0:00:12]} 50. Kg2 {[%emt 0:00:51]} Qe4+ {[%emt 0:00:05]} 51. Qf3 {[%emt 0:00:10]} Qe2+ {[%emt 0:01:48]} 52. Qf2 {[%emt 0:01:35]} Rh2+ 0-1

[Event "Romanian Amateur Championship 2024"]
[Site "Eforie Nord"]
[Date "2024.03.02"]
[Round "9.4"]
[White "Raducanu, Andrei-Augustin"]
[Black "Nagy, Janos-Nandor"]
[Result "1/2-1/2"]
[ECO "A13"]
[WhiteElo "1946"]
[BlackElo "1910"]
[Annotator "RC"]
[PlyCount "27"]
[EventDate "2024.02.26"]
[EventType "swiss"]
[EventCountry "ROU"]
[SourceTitle "playchess.com"]
[Source "ChessBase"]
[SourceQuality "1"]
[TimeControl "3600+30"]

1. Nf3 {[%emt 0:00:05]} Nf6 {[%emt 0:00:13]} 2. c4 {[%emt 0:00:05]} e6 {[%emt 0:00:08]} 3. g3 {[%emt 0:00:11]} d5 {[%emt 0:00:10]} 4. Bg2 {[%emt 0:00:04]} d4 {[%emt 0:02:10]} 5. b4 {[%emt 0:02:27]} a5 {[%emt 0:03:33]} 6. Bb2 {[%emt 0:01:01]} axb4 {[%emt 0:01:34]} 7. Nxd4 {[%emt 0:03:25]} Be7 {[%emt 0:02:10]} 8. O-O {[%emt 0:03:54]} O-O {[%emt 0:00:29]} 9. Nb3 {[%emt 0:06:46]} Nbd7 {[%emt 0:01:16]} 10. d4 {[%emt 0:00:34]} Nb6 {[%emt 0:06:07]} 11. Qc2 {[%emt 0:03:01]} Na4 {[%emt 0:01:17]} 12. Bc1 {[%emt 0:01:15]} c5 {[%emt 0:03:29]} 13. dxc5 {[%emt 0:09:16]} Nxc5 {[%emt 0:01:35]} 14. Rd1 {[%emt 0:04:34]} 1/2-1/2